Cogmind - Beta 15 @@@ ROGUE MODE // 2025.06.04 @ 18:56:54 Player: pakman Result: Destroyed by P-60 Hacker with Shock Rifle Performance ------------- Evolutions (4) 2000 Regions Visited (7) 1400 Robots Destroyed (152) 760 Value Destroyed (4244) 4244 Prototype IDs (12) 240 Alien Tech Used (0) 0 Bonus (998) 998 TOTAL SCORE: 9642 Bonus ------- Follower Combat Kills 198 Registered with UFD 300 Met Optimus in HQ 500 Cogmind --------- Core Integrity 0/850 Matter 300/300 Energy 67/100 System Corruption 13% Temperature Cool (0) Movement Core (700) Ox13 Location -6/Factory Parts ------- > --- POWER (2) -------- (None) > --- PROPULSION (4) --- (None) > --- UTILITY (6) ------ High-capacity Storage Unit Improved Signal Interpreter > --- WEAPON (3) ------- (None) > --- INVENTORY (20) --- Machine Analyzer Advanced Visual Processing Unit Advanced Terrain Scanner 0b10 Decoder Chip [Generic] ECM Suite Authchip [R/Combat] A0-MCA's Component Scanner Missile Launcher CPS Tube (2) Great Axe Botcube Peak State ------------ > --- POWER ------------ Enhanced Nuclear Core Light Fission Core > --- PROPULSION ------- Flexi-carbon Leg Flexi-carbon Leg Flexi-carbon Leg Armored Leg > --- UTILITY ---------- Scrap Suit Advanced Heat Sink High-capacity Storage Unit Improved Signal Interpreter Improved Light Armor Plating > --- WEAPON ----------- Pulse Rifle Thermic Laser Ion Cannon > --- INVENTORY -------- Micro Nuclear Core Light Angular Momentum Engine Flexi-carbon Leg Wheel Wheel Compact Wheel Machine Analyzer Advanced Visual Processing Unit Advanced Terrain Scanner 0b10 Decoder Chip [Generic] ECM Suite Layered Light Armor Plating Authchip [R/Combat] A0-MCA's Component Scanner Missile Launcher CPS Tube Great Axe Botcube [Rating: 68] Favorites ----------- Power Light Angular Momentum Engine Engine Light Angular Momentum Engine Power Core Enhanced Nuclear Core Propulsion Compact Wheel Leg Aluminum Leg Wheel Compact Wheel Hover Unit Hover Unit Utility High-capacity Storage Unit Device Improved Heat Sink Storage High-capacity Storage Unit Processor Improved Signal Interpreter Hackware Authchip [R/Combat] Protection Utility Shielding Weapon Pulse Rifle Energy Gun Pulse Rifle Energy Cannon Ion Cannon Ballistic Gun Light Assault Rifle Ballistic Cannon Improved Light Cannon Launcher Grenade Launcher Special Weapon Mining Laser Impact Weapon Maul Slashing Weapon Katana Build | -11 -10 -9 -8 -8 -8 -8 -6 ------- Run | Yrd Mat Mat Mat Sto Rec Scr Fac Slots Evolved 8 | . . 2 2 . . . 4 Power 1 | . . . . . . . 1 Propulsion 2 | . . 2 . . . . . Utility 4 | . . . 2 . . . 2 Weapon 1 | . . . . . . . 1 Parts Attached 111 | 1 6 17 7 33 9 . 38 Power 18 | . 1 3 1 5 . . 8 Engine 12 | . 1 2 . 5 . . 4 Core 6 | . . 1 1 . . . 4 Reactor . | . . . . . . . . Propulsion 39 | . 1 9 3 10 7 . 9 Treads . | . . . . . . . . Leg 10 | . 1 2 . . . . 7 Wheel 28 | . . 6 3 10 7 . 2 Hover 1 | . . 1 . . . . . Flight . | . . . . . . . . Utility 22 | 1 1 1 3 6 . . 10 Device 10 | 1 . . 1 3 . . 5 Storage 1 | . 1 . . . . . . Processor 2 | . . . 1 1 . . . Hackware 1 | . . . . . . . 1 Protection 8 | . . 1 1 2 . . 4 Artifact . | . . . . . . . . Weapon 32 | . 3 4 . 12 2 . 11 Energy Gun 13 | . . . . 5 1 . 7 Energy Cannon 8 | . . 2 . 4 . . 2 Ballistic Gun 2 | . 2 . . . . . . Ballistic Cannon 1 | . . 1 . . . . . Launcher 3 | . . 1 . 1 . . 1 Special Weapon 1 | . 1 . . . . . . Impact Weapon 1 | . . . . 1 . . . Slashing Weapon 3 | . . . . 1 1 . 1 Piercing Weapon . | . . . . . . . . Special Melee Weapon . | . . . . . . . . Unidentified Prototypes 4 | . . . . 2 . . 2 Corrupted Parts 1 | . . . . . . . 1 System Corruption 3 | . . . . . . . 3 Parts Lost 77 | . . 6 1 24 4 . 42 Power 13 | . . 1 . 4 . . 8 Propulsion 31 | . . 5 . 11 2 . 13 Utility 14 | . . . 1 4 1 . 8 Weapon 19 | . . . . 5 1 . 13 Highest Loss Streak 10 | . . 3 1 4 3 . 10 To Critical Strikes . | . . . . . . . . Average Backups 16 | 6 13 17 19 18 18 18 15 Power 1 | 1 1 2 3 2 1 1 1 Propulsion 2 | 4 4 2 2 2 2 1 1 Utility 6 | . 2 7 6 5 5 7 9 Weapon 5 | 1 4 5 7 8 8 7 2 Tool/Special . | . . . . . . . . Unused Backups 29 | . 5 7 . 2 2 5 8 Power 2 | . . 2 . . . . . Propulsion 7 | . 3 2 . . 1 1 . Utility 8 | . . 1 . . 1 1 5 Weapon 11 | . 2 2 . 2 . 3 2 Tool/Special 1 | . . . . . . . 1 Average Slot Usage (%) 91 | . 98 91 99 95 97 89 83 Engine 8 | . 13 10 . 4 9 9 6 Core 1 | . . . 9 3 . . 4 Leg 9 | . 27 15 . . . . 10 Wheel 21 | . . 21 36 33 35 36 11 Device 11 | . 14 10 10 11 9 9 15 Storage 9 | . 14 11 9 9 9 9 6 Processor 5 | . . . 8 9 9 9 6 Protection 4 | . . . 7 6 7 9 3 Energy Gun 6 | . . . . 3 8 7 11 Energy Cannon 3 | . . 11 9 8 . . 4 Ballistic Gun 4 | . 24 2 . . . . . Slashing Weapon 1 | . . . . 1 5 . . Peak Build Rating 68 | 7 9 15 18 27 27 30 68 Average Rating 26 | 6 7 11 17 20 25 25 48 On Entrance 16 | 6 7 9 15 17 22 22 30 Naked Turns . | . . . . . . . . Heaviest Build 79 | 14 49 61 60 68 63 57 79 Greatest Support 76 | 20 20 46 52 58 64 64 76 Greatest Overweight (x) 17 | . 4 17 1 2 1 . 6 Average Overweight (x) . | . 1 1 1 . . . 1 Largest Inventory Capacity 20 | 8 20 20 20 20 20 20 20 Average Capacity 19 | 8 18 20 20 20 20 20 20 Most Carried 20 | 6 20 20 20 20 20 20 20 Average Carried 16 | 6 13 17 19 18 18 19 16 Final Capacity 20 | 8 20 20 20 20 20 20 20 Final Carried 20 | 6 20 20 20 18 20 18 11 Class Distribution -------------------- 44% | Scavenger-Mutant 37% | Mutant 4% | Scavenger-Gunner 4% | Tank 3% | Gunner Dominant Class ---------------- Mutant | -10/Materials Mutant | -9/Materials Mutant | -8/Materials Scavenger-Mutant | -8/Storage Scavenger-Mutant | -8/Recycling Scavenger-Mutant | -8/Scraptown Scavenger-Mutant | -6/Factory Resources | -11 -10 -9 -8 -8 -8 -8 -6 ----------- Run | Yrd Mat Mat Mat Sto Rec Scr Fac Matter Collected 2627 | 223 216 442 101 645 296 20 684 Remotely . | . . . . . . . . Salvage Created 6420 | 40 247 971 244 1561 1546 . 1811 Parts 279 | 3 16 49 19 61 51 . 80 Haulers Intercepted 6 | . . . . 2 2 . 2 Recyclers Shooed 9 | . . 1 . 2 4 . 2 Parts Field Recycled . | . . . . . . . . Retrieved Matter . | . . . . . . . . Parts Self-Destructed . | . . . . . . . . Prevented . | . . . . . . . . Kills | -11 -10 -9 -8 -8 -8 -8 -6 ------- Run | Yrd Mat Mat Mat Sto Rec Scr Fac Combat Hostiles Destroyed 83 | . 6 17 4 24 3 . 29 Melee 1 | . . . . . 1 . . Guns 26 | . 6 1 . 5 . . 14 Cannons 40 | . . 16 4 11 2 . 7 AOE 7 | . . . . 3 . . 4 Classes Destroyed 16 | 1 4 4 2 3 1 . 1 Worker 22 | . . 6 . 5 1 . 10 Builder 7 | . . . 1 1 . . 5 Tunneler 2 | 2 . . . . . . . Hauler 6 | . . . . 2 2 . 2 Recycler 17 | . . 1 1 3 12 . . Mechanic 3 | . 1 . . 2 . . . Operator 3 | . . 2 . . . . 1 Watcher 9 | . 3 2 . . . . 4 Swarmer 10 | . 3 . . 3 . . 4 Grunt 38 | . 3 10 2 8 1 . 14 Brawler 2 | . . . . 1 . . 1 Duelist 2 | . . . . 2 . . . Sentry 19 | . . 7 1 9 1 . 1 Demolisher 1 | . . . . . 1 . . Hunter 5 | . . . 1 1 . . 3 Programmer 6 | . . . . . . . 6 Best Kill Streak 7 | 1 2 3 4 6 7 . 7 Combat Bots Only 4 | . 2 3 2 4 1 . 4 Max Kills in Single Turn 6 | 1 1 1 1 3 1 . 6 Gunslinging . | . . . . . . . . Exploded 2 | . . . . 2 . . 1 Melee 1 | . . . . . 1 . . Uniques/NPCs Destroyed . | . . . . . . . . Combat | -11 -10 -9 -8 -8 -8 -8 -6 -------- Run | Yrd Mat Mat Mat Sto Rec Scr Fac Hostile Shots Fired 702 | . 37 92 17 161 11 . 384 Missed 168 | . 12 25 2 39 2 . 88 Hits 534 | . 25 67 15 122 9 . 296 Melee 8 | . . . . 8 . . . Projectile 526 | . 25 67 15 114 9 . 296 AOE 9 | . . . . . 8 . 1 Critical Strikes 17 | . . 2 . 8 . . 7 Damage Taken 9201 | . 268 943 226 1986 523 . 5255 Core 1538 | . 32 156 . 405 84 . 861 Absorbed by Shields 51 | . . . . . . . 51 Redirected to Shielding 288 | . . . . 32 25 . 231 Ignored by Resistances 22 | . . . . 22 . . . Regen/Repaired (Parts) 385 | . . 36 . 44 . . 305 Core Remaining (%) 64 | 100 87 61 . . . 11 . Volleys Fired 393 | 13 36 79 17 87 21 . 140 Largest 3 | 2 2 2 2 2 2 . 3 Hottest 208 | 70 100 116 93 143 150 . 208 Shots Fired 760 | 26 68 153 34 142 29 . 308 Gun 391 | 26 64 18 . 53 8 . 222 Cannon 339 | . . 130 34 86 8 . 81 Launcher 26 | . . 5 . 3 13 . 5 Special 4 | . 4 . . . . . . Kinetic 149 | 13 62 57 17 . . . . Thermal 495 | 13 6 65 17 136 16 . 242 Explosive 26 | . . 5 . 3 13 . 5 Electromagnetic 90 | . . 26 . 3 . . 61 Robot Hit Streak 21 | 5 9 12 6 16 3 . 21 Robot Miss Streak 8 | 3 4 5 3 4 3 . 8 Penetration Max . | . . . . . . . . Secondary Targets 3 | . 1 . . . . . 2 Max Gunslinging Chain 1 | . 1 . . . . . 1 Shots Hit Robots 525 | 16 38 95 20 117 38 . 201 Core Hits 227 | 5 18 36 8 46 19 . 95 Critical Kills 1 | . . . . . . . 1 Critical Parts Destroyed 5 | . . . . 5 . . . Critical Strikes 32 | . . 2 1 12 . . 17 Burn 22 | . . . . 6 . . 16 Meltdown 1 | . . . . . . . 1 Blast 2 | . . 1 1 . . . . Corrupt 1 | . . 1 . . . . . Smash 5 | . . . . 5 . . . Sever 1 | . . . . 1 . . . Melee Attacks 103 | . . . . 52 46 . 5 Impact 42 | . . . . 42 . . . Slashing 61 | . . . . 10 46 . 5 Piercing . | . . . . . . . . Sneak Attacks 26 | . . . . 7 19 . . Combat Hostiles 1 | . . . . 1 . . . Follow-up Attacks . | . . . . . . . . Damage Inflicted 13388 | 143 442 1824 393 3228 2094 . 5264 Guns 4154 | 143 438 148 . 590 97 . 2738 Cannons 4453 | . . 1660 393 1031 100 . 1269 Explosions 1407 | . . 16 . 243 . . 1148 Melee 3250 | . . . . 1364 1886 . . Ramming 124 | . 4 . . . 11 . 109 Kinetic 1385 | 66 412 672 235 . . . . Thermal 6818 | 77 26 644 158 1566 197 . 4150 Explosive 633 | . . 16 . 243 . . 374 Electromagnetic 1178 | . . 492 . 55 . . 631 Impact 1102 | . . . . 1102 . . . Slashing 2148 | . . . . 262 1886 . . Piercing . | . . . . . . . . Highest Corruption 13 | . 2 . . 2 2 . 13 Average Corruption 2 | . 2 . . 2 2 . 2 Corruption Purged 3 | . . . . . . . 3 Corruption Blocked . | . . . . . . . . Effects 73 | . 8 . . 20 21 . 24 Message Errors 21 | . . . . 4 6 . 11 Matter Fused 21 | . 4 . . 5 5 . 7 Heat Flow Errors 8 | . 1 . . 2 3 . 2 Energy Discharges 8 | . 1 . . 3 3 . 1 Parts Rejected 1 | . 1 . . . . . . Data Loss (minor) 4 | . . . . 4 . . . Data Loss (major) 7 | . 1 . . 2 3 . 1 Misfires 2 | . . . . . 1 . 1 Alerts 1 | . . . . . . . 1 Overload Shots . | . . . . . . . . Overflow Damage 1258 | . . 28 18 451 386 . 375 Projectiles 91 | . . 28 18 1 . . 44 Explosions 350 | . . . . 6 29 . 315 Melee 817 | . . . . 444 357 . 16 Knockbacks 15 | . . 3 4 6 . . 2 Impact 7 | . . . . 5 . . 2 Kinetic 7 | . . 3 4 . . . . Secondary 1 | . . . . 1 . . . Self-Inflicted Damage 275 | . . 55 . . 125 . 95 Shots 6 | . . 2 . . 2 . 2 Rammed 18 | . . . . . 1 . 17 Targets Rammed 29 | . 1 . . . 1 . 27 Kicked 11 | . 1 . . . . . 10 Crushed . | . . . . . . . . Highest Temperature 515 | 70 230 301 351 417 420 . 515 Average Temperature 126 | 30 40 96 145 111 156 . 157 Received Heat Transfer 1977 | . 51 375 99 810 . . 642 Effects 33 | . . . 2 3 2 . 26 Shutdowns 9 | . . . . 1 1 . 7 Energy Bleed 7 | . . . 1 2 . . 4 Interference 6 | . . . . . . . 6 Matter Decay 5 | . . . . . . . 5 Short Circuit 2 | . . . . . 1 . 1 Damage (minor) 3 | . . . 1 . . . 2 Damage (major) 1 | . . . . . . . 1 Siege Activations . | . . . . . . . . Martial Activations . | . . . . . . . . Shielding Activations . | . . . . . . . . Robots Disrupted 1 | . . . . . . . 1 Combat Hostiles 1 | . . . . . . . 1 Robots Corrupted 8 | . . . . 6 . . 2 Combat Hostiles 6 | . . . . 4 . . 2 Parts Fried 11 | . . 2 . 6 . . 3 Impact Corruptions 18 | . . . . 16 . . 2 Robots Melted 4 | . . . . 1 . . 3 Combat Hostiles 3 | . . . . 1 . . 2 Parts Melted 33 | . . 1 . 11 1 . 20 Heat Transferred 14593 | 222 74 1369 333 3700 333 . 8562 Parts Sabotaged . | . . . . . . . . Parts Stolen . | . . . . . . . . Parts Stripped . | . . . . . . . . Power Chain Reactions 1 | . . . . . . . 1 Alert | -11 -10 -9 -8 -8 -8 -8 -6 ------- Run | Yrd Mat Mat Mat Sto Rec Scr Fac Maximum Alert Level 1 | . . . . . . . 1 Low Security (%) 93 | 100 100 100 100 100 100 . 79 Level 1 6 | . . . . . . . 20 Level 2 . | . . . . . . . . Level 3 . | . . . . . . . . Level 4 . | . . . . . . . . Level 5 . | . . . . . . . . High Security . | . . . . . . . . Max Security . | . . . . . . . . Peak Influence 392 | 5 66 191 99 133 83 . 392 Initial 76 | . . 5 76 41 22 . . Average 50 | 1 12 40 66 67 33 . 78 Influence Increases 3516 | 10 199 592 123 964 591 . 1037 Destroy 0b10 Robot/C 1780 | . 120 340 80 540 120 . 580 Destroy 0b10 Robot/NC 385 | 10 20 55 10 70 110 . 110 Destroy Leader 496 | . 26 124 30 154 . . 162 Allied During Kill 37 | . . . . 11 26 . . Successful Hack 80 | . 14 3 . 24 23 . 16 Select Force Hacks 150 | . . . . . 150 . . Disable Machine 150 | . . 15 . 15 75 . 45 Destroy Structure 183 | . 4 25 3 30 87 . 34 Partial Spotted 30 | . . . . 15 . . 15 Lose Combat Pursuer 225 | . 15 30 . 105 . . 75 Influence Decreases 3285 | 10 185 423 207 1004 599 51 806 Entered New Map 262 | . . 9 107 58 37 51 . Time Decay 2133 | 10 185 374 90 550 502 . 422 Lost Part 688 | . . 40 10 223 31 . 384 Lost Ally 69 | . . . . 40 29 . . Purge Threat 133 | . . . . 133 . . . Squads Dispatched 24 | . . 5 1 4 . . 14 Investigation 7 | . . 2 . 1 . . 4 Extermination 6 | . . . . . . . 6 Reinforcement 9 | . . 3 1 1 . . 4 Assault 2 | . . . . 2 . . . Garrison . | . . . . . . . . Intercept . | . . . . . . . . Searches Triggered . | . . . . . . . . Construction Impeded 3 | . . . . 1 . . 2 Haulers Reinforced 1 | . . . . . . . 1 Active Scanning Responses . | . . . . . . . . Cargo Convoy Interrupts . | . . . . . . . . Stealth | -11 -10 -9 -8 -8 -8 -8 -6 --------- Run | Yrd Mat Mat Mat Sto Rec Scr Fac Distress Signals 10 | . 3 2 . 2 1 . 2 Communications Jammed . | . . . . . . . . Distress Signals . | . . . . . . . . Times Spotted 172 | . 21 31 5 39 6 . 70 Peak Tracking Total 7 | . 3 4 2 6 2 . 7 Tactical Retreats 23 | . 1 2 . 6 1 . 13 Traps | -11 -10 -9 -8 -8 -8 -8 -6 ------- Run | Yrd Mat Mat Mat Sto Rec Scr Fac Traps Triggered 18 | . 4 1 . 4 . . 9 Indirectly . | . . . . . . . . Trap Hack Attempts . | . . . . . . . . Triggered . | . . . . . . . . Disarmed 6 | . . . . 6 . . . Reprogrammed 3 | . 3 . . . . . . Reused . | . . . . . . . . Traps Extracted . | . . . . . . . . Installed . | . . . . . . . . Triggered . | . . . . . . . . Machines | -11 -10 -9 -8 -8 -8 -8 -6 ---------- Run | Yrd Mat Mat Mat Sto Rec Scr Fac Machines Disabled 10 | . . 1 . 1 5 . 3 Max in Single Turn 3 | . . 1 . 1 2 . 3 Machines Repaired . | . . . . . . . . Machines Dismantled . | . . . . . . . . Machines Sabotaged . | . . . . . . . . Overloaded Fab Kills . | . . . . . . . . Hacking | -11 -10 -9 -8 -8 -8 -8 -6 --------- Run | Yrd Mat Mat Mat Sto Rec Scr Fac Machines Accessed 49 | . 7 4 1 11 13 4 9 Terminals 25 | . 5 2 1 9 6 . 2 Fabricators 1 | . . . . . . . 1 Repair Stations 4 | . . 1 . 1 . . 2 Recycling Units 12 | . 2 1 . 1 5 . 3 Scanalyzers . | . . . . . . . . Garrison Access 1 | . . . . . . . 1 Total Hacks 163 | . 23 9 3 34 56 15 23 Successful 111 | . 12 3 1 22 43 15 15 Failed 52 | . 11 6 2 12 13 . 8 Catastrophic 5 | . 1 . . . 3 . 1 Database Lockouts . | . . . . . . . . Manual 61 | . 15 4 3 14 17 1 7 Terminals 73 | . 16 4 3 26 22 . 2 Fabricators 2 | . . . . . . . 2 Repair Stations 19 | . . 3 . 5 . . 11 Recycling Units 28 | . 7 2 . 3 10 . 6 Scanalyzers . | . . . . . . . . Garrison Access 2 | . . . . . . . 2 Terminal Hacks 58 | . 3 . . 10 30 15 . Record 39 | . . . . . 24 15 . Part Schematic 8 | . . . . 2 6 . . Robot Analysis 1 | . . . . 1 . . . Prototype ID Bank 1 | . . . . 1 . . . Open Door 1 | . . . . 1 . . . Unreport Threat 1 | . . . . 1 . . . Locate Traps 3 | . 1 . . 2 . . . Disarm Traps 1 | . . . . 1 . . . Reprogram Traps 1 | . 1 . . . . . . Zone Layout 2 | . 1 . . 1 . . . Fabricator Hacks 1 | . . . . . . . 1 Load Schematic 1 | . . . . . . . 1 Repair Station Hacks 15 | . . 2 . 4 . . 9 Scan Component 8 | . . 1 . 2 . . 5 Repair 7 | . . 1 . 2 . . 4 Recycling Unit Hacks 13 | . 4 1 . 2 5 . 1 Report Inventory 11 | . 3 1 . 1 5 . 1 Retrieve Components 2 | . 1 . . 1 . . . Scanalyzer . | . . . . . . . . Garrison Access Hacks . | . . . . . . . . Unauthorized Hacks 23 | . 4 . 1 6 8 . 4 Terminals 15 | . 4 . 1 6 3 . 1 Assimilate 1 | . . . . 1 . . . Botnet 14 | . 4 . 1 5 3 . 1 Fabricators . | . . . . . . . . Repair Stations . | . . . . . . . . Recycling Units 8 | . . . . . 5 . 3 Tunnel 5 | . . . . . 5 . . Fedlink 3 | . . . . . . . 3 Scanalyzers . | . . . . . . . . Garrison Access . | . . . . . . . . Data Cores Recovered . | . . . . . . . . Used . | . . . . . . . . Hacking Detections 32 | . 7 3 1 8 7 . 6 Full Trace Events 9 | . 1 1 . 1 6 . . Feedback Events . | . . . . . . . . Feedback Blocked . | . . . . . . . . Robot Schematics Acquired . | . . . . . . . . Robots Built . | . . . . . . . . Authchips . | . . . . . . . . Time . | . . . . . . . . Total Robot Build Rating . | . . . . . . . . Part Schematics Acquired 8 | . . . . 2 6 . . Parts Built . | . . . . . . . . Authchips . | . . . . . . . . Time . | . . . . . . . . Total Part Build Rating . | . . . . . . . . Parts Repaired 7 | . . 1 . 2 . . 4 Time 242 | . . 26 . 76 . . 140 Parts Recycled . | . . . . . . . . Recycled Matter . | . . . . . . . . Retrieved Matter . | . . . . . . . . Retrieved Components 18 | . 8 . . 10 . . . Parts Scanalyzed . | . . . . . . . . Part Schematics Acquired . | . . . . . . . . Parts Damaged . | . . . . . . . . Bothacking | -11 -10 -9 -8 -8 -8 -8 -6 ------------ Run | Yrd Mat Mat Mat Sto Rec Scr Fac Used RIF Installer . | . . . . . . . . Robots Hacked . | . . . . . . . . Non-combat . | . . . . . . . . Combat . | . . . . . . . . Robot Hacks Applied . | . . . . . . . . Relay Couplers Released . | . . . . . . . . Fabnet Peak Effective % . | . . . . . . . . Robots Rewired 4 | . . . . . 4 . . Allies Hacked . | . . . . . . . . Hacks Repelled . | . . . . . . . . Allies | -11 -10 -9 -8 -8 -8 -8 -6 -------- Run | Yrd Mat Mat Mat Sto Rec Scr Fac Total Allies 6 | . . . . 2 4 . . Largest Group 4 | . . . . 2 4 2 . Highest-Rated Group 66 | . . . . 62 66 30 . Highest-Rated Ally 31 | . . . . 31 21 15 . Total Orders . | . . . . . . . . Ally Attacks 40 | . . . . 21 19 . . Total Damage 826 | . . . . 357 469 . . Kills 6 | . . . . 3 3 . . Allies Corrupted . | . . . . . . . . Allies Melted . | . . . . . . . . Intel | -11 -10 -9 -8 -8 -8 -8 -6 ------- Run | Yrd Mat Mat Mat Sto Rec Scr Fac Active Infowar (turns) 8041 | 21 2230 1317 197 1214 232 . 2830 Sensors 758 | . . . 197 561 . . . Terrain 347 | . . . . . . . 347 Seismic 4552 | 21 2230 1317 35 949 . . . Jamming 146 | . . . . . . . 146 ECM 2938 | . . . . 223 232 . 2483 Robot Analysis Total 1 | . . . . 1 . . . Derelict Logs Recovered . | . . . . . . . . Drone Launches . | . . . . . . . . Drone Recoveries . | . . . . . . . . Exploration | -11 -10 -9 -8 -8 -8 -8 -6 ------------- Run | Yrd Mat Mat Mat Sto Rec Scr Fac Turns Passed 13121 | 76 2230 1402 197 1847 1953 1896 3520 Spaces Moved 8264 | 27 835 639 64 1061 1744 1861 2033 Core 14 | . . 14 . . . . . Treads . | . . . . . . . . Legs 1786 | 27 835 177 . . . . 747 Wheels 6463 | . . 447 64 1061 1744 1861 1286 Hover 1 | . . 1 . . . . . Flight . | . . . . . . . . Fastest Speed 90 | 120 120 95 100 90 95 100 100 Average Speed 124 | 120 236 151 100 103 96 100 128 Slowest Speed 900 | 120 400 900 105 120 105 100 400 Overloaded Moves . | . . . . . . . . Propulsion Burnouts . | . . . . . . . . Robots Hopped . | . . . . . . . . Potential Cave-ins . | . . . . . . . . Cave-ins Triggered . | . . . . . . . . Exploration Rate (%) 57 | 4 92 50 10 85 100 92 28 Regions Visited 7 Branch Regions 3 Pre-discovered Areas 6 | . . . . . 5 . 1 Known Exits Taken 4 | . . . 1 1 1 1 . Unknown Exits Taken 3 | 1 1 1 . . . . . Scrap Searched 7 | . . . . . . 7 . Spaces Dug 131 | . 4 27 . 22 73 . 5 Terrain Destroyed 231 | . 4 45 1 26 120 . 35 Melee 28 | . . . . 17 6 . 5 Projectile 17 | . 4 3 1 5 4 . . AOE 186 | . . 42 . 4 110 . 30 Terrain Rammed . | . . . . . . . . Walls Destroyed . | . . . . . . . . Machines Disabled . | . . . . . . . . Actions | -11 -10 -9 -8 -8 -8 -8 -6 --------- Run | Yrd Mat Mat Mat Sto Rec Scr Fac Total 10126 | 46 1022 930 163 1549 1911 1900 2605 Wait 950 | 6 121 162 72 249 25 20 295 Move 8257 | 26 834 638 63 1060 1743 1860 2033 Hop . | . . . . . . . . Pick Up 78 | . 18 14 1 18 10 8 9 Fast Attach 47 | 1 3 6 . 12 1 . 24 Attach 58 | . 2 7 3 21 4 2 19 Detach 21 | . 1 4 . 4 2 . 10 Swap 65 | . 3 7 5 30 11 . 9 Drop 51 | . 3 13 2 8 10 9 6 Fire 393 | 13 36 79 17 87 21 . 140 Melee 103 | . . . . 52 46 . 5 Ram 18 | . . . . . 1 . 17 Kick 11 | . 1 . . . . . 10 Crush . | . . . . . . . . Escape Stasis 36 | . . . . 8 . . 28 Rewire 38 | . . . . . 37 1 . Trap . | . . . . . . . . Miscellaneous . | . . . . . . . . Route ------- -11/Scrapyard -10/Materials (discovered 4 exits: *Mat x3 / [*Min]) -9/Materials (discovered 2 exits: *Mat / [*Min]) -8/Materials -8/Storage (discovered 2 exits: *Fac / *Rec) -8/Recycling (discovered 2 exits: *Fac / *Scr) -8/Scraptown (discovered 2 exits: *Fac x2) -6/Factory (discovered 2 exits: *Fac / [*Low]) History --------- Turn | Location | Event 13 | -11/Scrapyard | Discovered new exit (range 3) 77 | -11/Scrapyard | Entered Materials 112 | -10/Materials | Discovered new exit (range 6) 253 | -10/Materials | Discovered new exit (range 3) 310 | -10/Materials | Build established: Mutant 1080 | -10/Materials | Discovered new exit (range 5) 2033 | -10/Materials | Discovered new exit (range 16) 2307 | -10/Materials | Entered another Materials area 2307 | -9/Materials | Evolved 2 slots: Propulsion x2 2599 | -9/Materials | Discovered new exit (range 15) 2758 | -9/Materials | Lost 3 parts (3n) 3326 | -9/Materials | Build established: Scavenger-Mutant 3435 | -9/Materials | Repaired Wheel 3694 | -9/Materials | Discovered new exit (range 15) 3709 | -9/Materials | Entered another Materials area 3709 | -8/Materials | Evolved 2 slots: Utility x2 3815 | -8/Materials | Discovered new exit (range 11) 3886 | -8/Materials | Identified exit to Storage 3906 | -8/Materials | Entered Storage 4354 | -8/Storage | Met a pair of Derelict thieves 4374 | -8/Storage | Lost 3 parts (1p1n1u) 4498 | -8/Storage | Lost 3 parts (2n1u) 4619 | -8/Storage | Build established: Mutant 4667 | -8/Storage | Lost 4 parts (1p3n) 4840 | -8/Storage | Discovered new exit (range 16) 4958 | -8/Storage | Identified exit to Factory 4990 | -8/Storage | Build established: Scavenger-Mutant 5052 | -8/Storage | Core integrity fell below 50% 5237 | -8/Storage | Lost 4 parts (1p1n1u1w) 5502 | -8/Storage | Build established: Mutant 5514 | -8/Storage | Repaired Lgt. Angular Momentum Engine 5543 | -8/Storage | Repaired Com. Wheel 5746 | -8/Storage | Used back door to open Recycling access 5746 | -8/Storage | Discovered new exit (range 4) 5748 | -8/Storage | Identified exit to Recycling 5753 | -8/Storage | Entered Recycling 5824 | -8/Recycling | Core integrity fell below 20% 5862 | -8/Recycling | Lost 3 parts (1n1u1w) 6292 | -8/Recycling | Build established: Scavenger-Mutant 6659 | -8/Recycling | Discovered new exit (range 5) 6663 | -8/Recycling | Identified exit to Factory 7644 | -8/Recycling | Scanned before Scraplab entrance 7667 | -8/Recycling | Entered Scraplab 7684 | -8/Recycling | Discovered new exit (range 4) 7686 | -8/Recycling | Identified exit to Scraptown 7706 | -8/Recycling | Entered Scraptown 7706 | -8/Scraptown | Accompanied by 2 allies 7706 | -8/Scraptown | System corruption cleaned by C-Scrubber 8075 | -8/Scraptown | Discovered exit to Factory (range 5) 8167 | -8/Scraptown | Visited Cave Peace 8215 | -8/Scraptown | Visited Spacefarers 8306 | -8/Scraptown | Visited Observation Area 8502 | -8/Scraptown | Visited Bundlers 8612 | -8/Scraptown | Visited Symbiants 8647 | -8/Scraptown | Visited Cyclists 8677 | -8/Scraptown | Visited UFD Registry 8677 | -8/Scraptown | Registered with UFD as "Softspreader" 8696 | -8/Scraptown | Entered Cyclist Reading Room 8755 | -8/Scraptown | Visited Infowarlord's Domain 8792 | -8/Scraptown | Visited Scrapoid Research Area 8823 | -8/Scraptown | Visited Supply Room 8859 | -8/Scraptown | Visited LU-1G1's Boring Crew 8969 | -8/Scraptown | Visited Cartography Club 9026 | -8/Scraptown | Found Scrap Suit 9069 | -8/Scraptown | Discovered exit to Factory (range 5) 9123 | -8/Scraptown | Visited A0-MCA Data Center 9129 | -8/Scraptown | Given a B- rating by A0-MCA 9133 | -8/Scraptown | Found A0-MCA's Component Scanner 9151 | -8/Scraptown | Visited Scrap Suit Storage 9390 | -8/Scraptown | Visited Botcube Research 9398 | -8/Scraptown | Found Botcube 9424 | -8/Scraptown | Visited Abandonware Association 9437 | -8/Scraptown | Learned abandonware demo "OVRCLOCK.EXE" 9447 | -8/Scraptown | Learned abandonware demo "REVENGE.EXE" 9515 | -8/Scraptown | Met Optimus 9515 | -8/Scraptown | Accepted into 0bPrime 9602 | -8/Scraptown | Entered Factory 9602 | -6/Factory | Evolved 4 slots: Power x1, Utility x2, Weapon x1 9639 | -6/Factory | Repaired ECM Suite 9678 | -6/Factory | Repaired Lgt. Deuterium Engine 9718 | -6/Factory | Repaired Imp. Heat Sink 9928 | -6/Factory | Lost 3 parts (1p1n1w) 10214 | -6/Factory | Loaded intel: 8 recycling unit locations 10502 | -6/Factory | Build established: Scavenger-Gunner 10824 | -6/Factory | Lost 7 parts (2p3n2w) 11217 | -6/Factory | Build established: Scavenger-Mutant 11217 | -6/Factory | Discovered new exit (range 11) 11241 | -6/Factory | Identified exit to Factory 11379 | -6/Factory | Repaired Ion Cannon 11482 | -6/Factory | Learned location of Protoforge (-2) 11541 | -6/Factory | Discovered new exit (range 4) 12233 | -6/Factory | Build established: Tank 12759 | -6/Factory | Lost 4 parts (1p1u2w) 12874 | -6/Factory | Lost 5 parts (1p2n1u1w) 13052 | -6/Factory | Lost 10 parts (1p3n1u5w) 13066 | -6/Factory | Core integrity fell below 50% 13078 | -6/Factory | System corruption reached 10% 13104 | -6/Factory | Core integrity fell below 20% 13117 | -6/Factory | Lost 8 parts (1p4n3u) 13122 | -6/Factory | Destroyed by P-60 Hacker with Shock Rifle Last Messages --------------- 13087_ K-01 Serf cleans the Fusion Modulator. 13091_ Penetrated by Slug. 13092_ K-01 Serf cleans the Fusion Modulator. 13092_ P-60 Hacker resets H-66 Slayer, system corruption cleaned. 13092_ Slammed into P-60 Hacker. 13098_ Slug penetrates Wall. 13099_ K-01 Serf cleans the Fusion Modulator. 13099_ Slammed into P-60 Hacker. 13102_ 9YPRXFZP0U 0MCUQLCZ DIIYF 13104_ Slug penetrates Wall. 13106_ H-66 Slayer retrieves Drone. 13106_ Slammed into P-60 Hacker. 13109_ Penetrated by Slug. 13113_ Slammed into P-60 Hacker. 13113_ Destabilizing: Core damaged (-42). 13114_ P-60 Hacker heat spikes uncontrollably. 13117_ P-60 Hacker heat damages Mic. Nuclear Core. 13118_ P-60 Hacker heat damages Gravmag System. 13120_ Slammed into P-60 Hacker. 13122_ System corrupted: Energy discharge (-33). Map ----- +----------------------------------------------------+ | # #??? ???????????????????????????? | | # #??? ???????????????""??????????? | | # #??? ???????? ????""??????????? | | / #???# #???????? ???? ??????????? | | # #???# #?????? ####+#####??????? | | # #???# #?????? # ?????? | | # # #???# #??????? # "????? | | # # ##### #??????? # ???? | | # # + #???????? # """""? | | # ################## #????????? # ? | | # #????????????????# #?????????? # """""" | | # #????????????????# #??????????? # ? | | ? ?????????????????# #???????????## # ???? | | ? ??????????######## ########+#### ^ ####+### | | ? ??????????+ + ! | | ? ??????????##### #### % | | ? ??????????????#????# + | | ? ???????????????????# # %% | | ? ???????????????????# """ """ # | | ?????????????????????# """ """ " | | ?????????????????????# """ """ # | | ?????????????????????# ### ##### | | ????????????????# #### """ """ #?## ##??# | | ????????????????# + """ """ #??# #???# | | ????????????????#+#### """ """ #??# #???# | | ?????????????????????#%%%@p #??# #???# | | ?????????????????????##/###########??# #???# | | ??????????????????????#%#????????????# #???# | | ??????????????????????# #?????????#### #???# | | ??????????????????????# #?????????# #???# | | ??????????????????????# #?????????# #####/##/## | | ??????????????????????# #?????????# ^ # | | ??????????????????????# #?????????#^^ + | | ??????????????????????# #?????????# # | | ??????????????????????# ########### # | | ??????????????????????# + | | ??????????????????????##########+####### | | ???????????????????????????# ! % #?# | | ???????????????????????????# "Y" #?#! | | ???????????????????????????# """ #?# | | ???????????????????????????# #?# | | #?????????????????####################?####""" | | #?????????????????# #?????????????? | | #?????????????????# #???????????????# #### | | #?????????????????# #????????????????##??? | | #?????????????????# #????????????????????? | | #?????????????????#####+###########??????????????? | | #??????#######????????# # #??????????????? | | #??????# ######???# #! """ #??????????????? | | ######## ##### # R" #??????????????# | +----------------------------------------------------+ Best States ------------- Heat Dissipation 56 Energy Generation 30 Energy Capacity 360 Matter Stores 300 Matter Capacity 300 Sight Range 16 Robot Scan Range 14 Terrain Scan Range 20 Terrain Scan Density 10 ECM Strength 1 Jamming Range 12 Armor Coverage 225 Resistance: KI 20 Propulsion Shielding 33 Utility Shielding 66 Weapon Shielding 66 Evasion (%) 55 Authchip Count 2 Item Schematics ----------------- Imp. Signal Interpreter | -8/Storage | Hacked Drone Bay | -8/Storage | Hacked Imp. Light Armor Plating | -8/Recycling | Hacked Katana | -8/Recycling | Hacked Adv. Visual Processing Unit | -8/Recycling | Hacked Plasma Rifle | -8/Recycling | Hacked Hvy. Reflective Plating | -8/Recycling | Hacked Adv. Signal Interpreter | -8/Recycling | Hacked Robot Schematics ------------------ None Fabricated ------------ Nothing Repaired ---------- Wheel | 10% | -9/Materials Lgt. Angular Momentum Engine | 58% | -8/Storage Com. Wheel | 36% | -8/Storage ECM Suite | 25% | -6/Factory Lgt. Deuterium Engine | 72% | -6/Factory Imp. Heat Sink | 45% | -6/Factory Ion Cannon | 4% | -6/Factory Alien Tech Used ----------------- None Achievements -------------- None Challenges ------------ None Game ------ Seed ArchitectEnergyMonowheel Manual? 0 Play Time 02:35:30 Cumulative 70.6 hours Start 2025.06.03 @ 17:27:06 End 2025.06.04 @ 18:56:54 Sessions 5 Manual Loads 0 Difficulty Rogue Special Mode None Game No. 76 Rogue 76 Adventurer 0 Explorer 0 Win Type - Total 0 Types 0/0/0/0/0/0/0/0/0/0 Lore% 43 Gallery% 32 Achievement% 29 Wizard Run 0 Options --------- Layout 0 ASCII 0 Keyboard 1 Movement Numpad Keybinds 0 Fullscreen 2 Font 18/SmallcapsGlow Map View 76x50 Zoom Use 0% Tactical HUD 1 Map Filters NONE Filters NONE Steam 1 RUN: a32ec6ed-0c5f-4d4c-a276-e71df4443fb0